[Event "Titled Tuesday Blitz April 4 Late 2023"]
[White "Makaraci, Tunahan"]
[Black "Weetik, Vjacheslav"]
[WhiteFideId "6356559"]
[BlackFideId "4153472"]
[WhiteElo "2160"]
[BlackElo "2469"]
[Result "1-0"]
[Round "05"]
[TimeControl "180+2"]
[Date "2023.04.04"]
[WhiteClock "0:00:17"]
[BlackClock "0:00:05"]

1. e4 {[%clk 0:03:00]}  c5 {[%clk 0:02:58]} 2. c3 {[%clk 0:03:01]}  e6 {[%clk 0:02:55]} 3. Nf3 {[%clk 0:03:01]}  d5 {[%clk 0:02:55]} 4. exd5 {[%clk 0:03:00]}  exd5 {[%clk 0:02:54]} 5. d4 {[%clk 0:03:00]}  Nf6 {[%clk 0:02:54]} 6. Bg5 {[%clk 0:02:57]}  cxd4 {[%clk 0:02:46]} 7. Nxd4 {[%clk 0:02:56]}  Bd6 {[%clk 0:02:40]} 8. Bb5+ {[%clk 0:02:55]}  Kf8 {[%clk 0:02:12]} 9. O-O {[%clk 0:02:48]}  a6 {[%clk 0:02:01]} 10. Bd3 {[%clk 0:02:44]}  Nc6 {[%clk 0:01:59]} 11. Nf5 {[%clk 0:02:34]}  Bxf5 {[%clk 0:01:50]} 12. Bxf5 {[%clk 0:02:34]}  h6 {[%clk 0:01:48]} 13. Bh4 {[%clk 0:02:23]}  g6 {[%clk 0:01:31]} 14. Bc2 {[%clk 0:02:13]}  Be7 {[%clk 0:01:12]} 15. Nd2 {[%clk 0:02:11]}  Kg7 {[%clk 0:01:10]} 16. Nf3 {[%clk 0:02:10]}  Qb6 {[%clk 0:00:59]} 17. Re1 {[%clk 0:02:00]}  Rhe8 {[%clk 0:00:53]} 18. Bb3 {[%clk 0:01:49]}  Rad8 {[%clk 0:00:48]} 19. Nd4 {[%clk 0:01:44]}  Nxd4 {[%clk 0:00:47]} 20. cxd4 {[%clk 0:01:44]}  g5 {[%clk 0:00:28]} 21. Bg3 {[%clk 0:01:44]}  Ne4 {[%clk 0:00:27]} 22. Qh5 {[%clk 0:01:19]}  Bf6 {[%clk 0:00:20]} 23. Rad1 {[%clk 0:00:40]}  Bxd4 {[%clk 0:00:17]} 24. Qf3 {[%clk 0:00:34]}  Nxg3 {[%clk 0:00:07]} 25. hxg3 {[%clk 0:00:34]}  Bxb2 {[%clk 0:00:04]} 26. Rxe8 {[%clk 0:00:31]}  Rxe8 {[%clk 0:00:04]} 27. Bxd5 {[%clk 0:00:29]}  Qf6 {[%clk 0:00:05]} 28. Bxb7 {[%clk 0:00:20]}  a5 {[%clk 0:00:05]} 29. Qb3 {[%clk 0:00:17]} 1-0


[Site "https://www.chess.com"]

[Event "Titled Tuesday Blitz April 4 Late 2023"]
[White "Prydun, Andriy"]
[Black "Cuenca Jimenez, Jose Fernando"]
[WhiteFideId "14145898"]
[BlackFideId "2255570"]
[WhiteElo "2164"]
[BlackElo "2429"]
[Result "1-0"]
[Round "05"]
[TimeControl "180+2"]
[Date "2023.04.04"]
[WhiteClock "0:00:12"]
[BlackClock "0:00:05"]

1. e4 {[%clk 0:02:54]}  d6 {[%clk 0:03:00]} 2. d4 {[%clk 0:02:54]}  Nf6 {[%clk 0:03:00]} 3. Nc3 {[%clk 0:02:53]}  e5 {[%clk 0:03:01]} 4. Nge2 {[%clk 0:02:51]}  Be7 {[%clk 0:03:01]} 5. Rg1 {[%clk 0:02:46]}  O-O {[%clk 0:02:58]} 6. d5 {[%clk 0:02:42]}  c6 {[%clk 0:02:54]} 7. h3 {[%clk 0:02:31]}  cxd5 {[%clk 0:02:45]} 8. exd5 {[%clk 0:02:30]}  a6 {[%clk 0:02:21]} 9. a4 {[%clk 0:02:29]}  Ne8 {[%clk 0:02:14]} 10. a5 {[%clk 0:02:27]}  f5 {[%clk 0:02:13]} 11. Be3 {[%clk 0:02:04]}  Bg5 {[%clk 0:01:55]} 12. Qd2 {[%clk 0:01:49]}  Bxe3 {[%clk 0:01:51]} 13. Qxe3 {[%clk 0:01:50]}  Nf6 {[%clk 0:01:46]} 14. Nc1 {[%clk 0:01:41]}  Nbd7 {[%clk 0:01:40]} 15. Nb3 {[%clk 0:01:41]}  Kh8 {[%clk 0:01:18]} 16. O-O-O {[%clk 0:01:39]}  b6 {[%clk 0:01:08]} 17. g4 {[%clk 0:01:28]}  f4 {[%clk 0:01:03]} 18. Qe1 {[%clk 0:01:28]}  bxa5 {[%clk 0:01:02]} 19. Na4 {[%clk 0:01:28]}  Nb6 {[%clk 0:00:44]} 20. Qxa5 {[%clk 0:01:26]}  Nxa4 {[%clk 0:00:42]} 21. Qxa4 {[%clk 0:01:27]}  a5 {[%clk 0:00:39]} 22. g5 {[%clk 0:01:16]}  Ng8 {[%clk 0:00:30]} 23. Bb5 {[%clk 0:00:56]}  Qb6 {[%clk 0:00:29]} 24. f3 {[%clk 0:00:36]}  Ne7 {[%clk 0:00:27]} 25. c4 {[%clk 0:00:27]}  Nf5 {[%clk 0:00:22]} 26. Nd2 {[%clk 0:00:24]}  Ne3 {[%clk 0:00:21]} 27. Rde1 {[%clk 0:00:23]}  Bf5 {[%clk 0:00:21]} 28. Qa3 {[%clk 0:00:21]}  Nc2 {[%clk 0:00:18]} 29. Qc3 {[%clk 0:00:21]}  Nxe1 {[%clk 0:00:17]} 30. Rxe1 {[%clk 0:00:22]}  Rac8 {[%clk 0:00:16]} 31. h4 {[%clk 0:00:19]}  Rc7 {[%clk 0:00:14]} 32. Kd1 {[%clk 0:00:13]}  Rfc8 {[%clk 0:00:08]} 33. Ke2 {[%clk 0:00:12]}  Ra7 {[%clk 0:00:06]} 34. Ra1 {[%clk 0:00:10]}  a4 {[%clk 0:00:06]} 35. Rxa4 {[%clk 0:00:10]}  Rxa4 {[%clk 0:00:06]} 36. Bxa4 {[%clk 0:00:11]}  Qg1 {[%clk 0:00:04]} 37. Bc2 {[%clk 0:00:08]}  Qg2+ {[%clk 0:00:04]} 38. Ke1 {[%clk 0:00:08]}  Qg1+ {[%clk 0:00:04]} 39. Ke2 {[%clk 0:00:09]}  Bxc2 {[%clk 0:00:04]} 40. Qxc2 {[%clk 0:00:10]}  Qe3+ {[%clk 0:00:04]} 41. Kd1 {[%clk 0:00:09]}  Ra8 {[%clk 0:00:04]} 42. Qe4 {[%clk 0:00:06]}  Qxe4 {[%clk 0:00:03]} 43. Nxe4 {[%clk 0:00:06]}  Ra6 {[%clk 0:00:02]} 44. b4 {[%clk 0:00:06]}  Kg8 {[%clk 0:00:03]} 45. c5 {[%clk 0:00:06]}  dxc5 {[%clk 0:00:04]} 46. bxc5 {[%clk 0:00:07]}  Kf7 {[%clk 0:00:04]} 47. c6 {[%clk 0:00:07]}  Ke7 {[%clk 0:00:05]} 48. d6+ {[%clk 0:00:07]}  Kd8 {[%clk 0:00:05]} 49. c7+ {[%clk 0:00:07]}  Kc8 {[%clk 0:00:05]} 50. Kc2 {[%clk 0:00:08]}  Ra5 {[%clk 0:00:03]} 51. Kc3 {[%clk 0:00:08]}  Kd7 {[%clk 0:00:03]} 52. Kc4 {[%clk 0:00:08]}  h6 {[%clk 0:00:03]} 53. Nc5+ {[%clk 0:00:08]}  Kc8 {[%clk 0:00:02]} 54. Kd5 {[%clk 0:00:08]}  Rb5 {[%clk 0:00:02]} 55. Kc6 {[%clk 0:00:08]}  Rxc5+ {[%clk 0:00:03]} 56. Kxc5 {[%clk 0:00:08]}  Kd7 {[%clk 0:00:04]} 57. Kd5 {[%clk 0:00:09]}  e4 {[%clk 0:00:05]} 58. Kxe4 {[%clk 0:00:09]}  h5 {[%clk 0:00:05]} 59. Kxf4 {[%clk 0:00:09]}  g6 {[%clk 0:00:05]} 60. Ke5 {[%clk 0:00:09]}  Kc8 {[%clk 0:00:04]} 61. Kf6 {[%clk 0:00:10]}  Kd7 {[%clk 0:00:04]} 62. Kxg6 {[%clk 0:00:11]}  Kc8 {[%clk 0:00:02]} 63. Kxh5 {[%clk 0:00:11]}  Kd7 {[%clk 0:00:03]} 64. g6 {[%clk 0:00:11]}  Kc8 {[%clk 0:00:03]} 65. g7 {[%clk 0:00:12]}  Kd7 {[%clk 0:00:04]} 66. g8=Q {[%clk 0:00:12]}  Kc6 {[%clk 0:00:04]} 67. Qc4+ {[%clk 0:00:12]}  Kd7 {[%clk 0:00:04]} 68. c8=Q+ {[%clk 0:00:12]}  Kxd6 {[%clk 0:00:05]} 69. Q8c7# {[%clk 0:00:12]} 1-0


[Site "https://www.chess.com"]

[Event "Titled Tuesday Blitz April 4 Late 2023"]
[White "Goltseva, Ekaterina"]
[Black "Sokolovsky, Yahli"]
[WhiteFideId "24173770"]
[BlackFideId "2820242"]
[WhiteElo "2200"]
[BlackElo "2316"]
[Result "1-0"]
[Round "05"]
[TimeControl "180+2"]
[Date "2023.04.04"]
[WhiteClock "0:00:06"]
[BlackClock "0:01:33"]

1. d4 {[%clk 0:02:54]}  d5 {[%clk 0:02:58]} 2. c4 {[%clk 0:02:52]}  c6 {[%clk 0:02:58]} 3. cxd5 {[%clk 0:02:50]}  cxd5 {[%clk 0:02:58]} 4. Bf4 {[%clk 0:02:49]}  Nf6 {[%clk 0:02:56]} 5. Nc3 {[%clk 0:02:47]}  e6 {[%clk 0:02:57]} 6. e3 {[%clk 0:02:45]}  Bd6 {[%clk 0:02:58]} 7. Bxd6 {[%clk 0:02:44]}  Qxd6 {[%clk 0:02:58]} 8. f4 {[%clk 0:02:45]}  O-O {[%clk 0:02:56]} 9. Nf3 {[%clk 0:02:36]}  b6 {[%clk 0:02:57]} 10. Bd3 {[%clk 0:02:27]}  Ba6 {[%clk 0:02:56]} 11. O-O {[%clk 0:02:15]}  Ne4 {[%clk 0:02:39]} 12. Nxe4 {[%clk 0:01:55]}  dxe4 {[%clk 0:02:38]} 13. Bxe4 {[%clk 0:01:55]}  Nd7 {[%clk 0:02:33]} 14. Rf2 {[%clk 0:01:45]}  Rac8 {[%clk 0:02:31]} 15. Rc1 {[%clk 0:01:35]}  Nf6 {[%clk 0:02:27]} 16. Bb1 {[%clk 0:01:31]}  Ng4 {[%clk 0:02:27]} 17. Rxc8 {[%clk 0:01:17]}  Rxc8 {[%clk 0:02:28]} 18. Rc2 {[%clk 0:00:48]}  Rd8 {[%clk 0:02:23]} 19. Rc3 {[%clk 0:00:44]}  Qb4 {[%clk 0:02:17]} 20. Qc2 {[%clk 0:00:39]}  Nf6 {[%clk 0:02:18]} 21. Ne5 {[%clk 0:00:38]}  g6 {[%clk 0:02:10]} 22. Nc6 {[%clk 0:00:37]}  Qd6 {[%clk 0:02:07]} 23. Nxd8 {[%clk 0:00:37]}  Qxd8 {[%clk 0:02:08]} 24. Ra3 {[%clk 0:00:31]}  Bb7 {[%clk 0:02:03]} 25. Rxa7 {[%clk 0:00:31]}  Qd5 {[%clk 0:02:04]} 26. Ra3 {[%clk 0:00:24]}  Ne4 {[%clk 0:01:59]} 27. Qxe4 {[%clk 0:00:22]}  Qh5 {[%clk 0:01:45]} 28. Qd3 {[%clk 0:00:13]}  Qg4 {[%clk 0:01:39]} 29. Qd2 {[%clk 0:00:12]}  h5 {[%clk 0:01:40]} 30. Ra7 {[%clk 0:00:11]}  Bd5 {[%clk 0:01:38]} 31. e4 {[%clk 0:00:11]}  Bc4 {[%clk 0:01:39]} 32. Rc7 {[%clk 0:00:08]}  b5 {[%clk 0:01:39]} 33. b3 {[%clk 0:00:08]}  h4 {[%clk 0:01:38]} 34. bxc4 {[%clk 0:00:07]}  h3 {[%clk 0:01:39]} 35. Bc2 {[%clk 0:00:04]}  hxg2 {[%clk 0:01:38]} 36. Bd1 {[%clk 0:00:04]}  Qh4 {[%clk 0:01:39]} 37. Qf2 {[%clk 0:00:04]}  Qh3 {[%clk 0:01:39]} 38. Rc8+ {[%clk 0:00:04]}  Kg7 {[%clk 0:01:39]} 39. Qg3 {[%clk 0:00:05]}  Qh6 {[%clk 0:01:37]} 40. Kxg2 {[%clk 0:00:05]}  bxc4 {[%clk 0:01:37]} 41. Bf3 {[%clk 0:00:05]}  e5 {[%clk 0:01:32]} 42. Qg5 {[%clk 0:00:05]}  c3 {[%clk 0:01:33]} 43. Qxh6+ {[%clk 0:00:06]}  Kxh6 {[%clk 0:01:33]} 44. fxe5 {[%clk 0:00:06]} 1-0


[Site "https://www.chess.com"]

[Event "Titled Tuesday Blitz April 4 Late 2023"]
[White "Vlassov, Nikolai"]
[Black "QuiesPrecatio"]
[WhiteFideId "4103360"]
[WhiteElo "2324"]
[BlackElo "2459"]
[Result "1-0"]
[Round "05"]
[TimeControl "180+2"]
[Date "2023.04.04"]
[WhiteClock "0:01:07"]
[BlackClock "0:00:03"]

1. e4 {[%clk 0:03:00]}  c6 {[%clk 0:02:53]} 2. d4 {[%clk 0:03:00]}  d5 {[%clk 0:02:53]} 3. e5 {[%clk 0:02:58]}  Bf5 {[%clk 0:02:51]} 4. Nc3 {[%clk 0:02:57]}  e6 {[%clk 0:02:48]} 5. g4 {[%clk 0:02:57]}  Bg6 {[%clk 0:02:43]} 6. Nge2 {[%clk 0:02:57]}  h5 {[%clk 0:02:41]} 7. Nf4 {[%clk 0:02:57]}  Bh7 {[%clk 0:02:40]} 8. Nxh5 {[%clk 0:02:57]}  c5 {[%clk 0:02:38]} 9. dxc5 {[%clk 0:02:57]}  Nc6 {[%clk 0:02:34]} 10. Bb5 {[%clk 0:02:56]}  Bxc5 {[%clk 0:02:32]} 11. Bxc6+ {[%clk 0:02:55]}  bxc6 {[%clk 0:02:27]} 12. Nxg7+ {[%clk 0:02:55]}  Kf8 {[%clk 0:02:27]} 13. Nh5 {[%clk 0:02:56]}  Qb6 {[%clk 0:02:20]} 14. O-O {[%clk 0:02:51]}  Bg6 {[%clk 0:02:15]} 15. Na4 {[%clk 0:02:48]}  Qb4 {[%clk 0:02:14]} 16. Nxc5 {[%clk 0:02:47]}  Qxc5 {[%clk 0:02:14]} 17. Nf4 {[%clk 0:02:41]}  Ne7 {[%clk 0:02:13]} 18. Be3 {[%clk 0:02:39]}  Qc4 {[%clk 0:02:04]} 19. Qd4 {[%clk 0:02:31]}  Qxd4 {[%clk 0:01:22]} 20. Bxd4 {[%clk 0:02:30]}  Kg7 {[%clk 0:01:21]} 21. Bc5 {[%clk 0:02:26]}  Nc8 {[%clk 0:01:10]} 22. Nxg6 {[%clk 0:02:24]}  fxg6 {[%clk 0:01:08]} 23. Kg2 {[%clk 0:02:22]}  Nb6 {[%clk 0:01:07]} 24. b3 {[%clk 0:02:13]}  Nd7 {[%clk 0:01:05]} 25. Bd6 {[%clk 0:02:12]}  g5 {[%clk 0:01:03]} 26. f4 {[%clk 0:02:10]}  Rh4 {[%clk 0:01:00]} 27. h3 {[%clk 0:02:04]}  Rah8 {[%clk 0:01:00]} 28. Rf3 {[%clk 0:01:57]}  gxf4 {[%clk 0:01:00]} 29. Rh1 {[%clk 0:01:57]}  Nf8 {[%clk 0:01:01]} 30. Rxf4 {[%clk 0:01:53]}  Ng6 {[%clk 0:01:00]} 31. Rf6 {[%clk 0:01:50]}  R4h6 {[%clk 0:00:45]} 32. Kg3 {[%clk 0:01:49]}  a6 {[%clk 0:00:41]} 33. Rxe6 {[%clk 0:01:44]}  Rxh3+ {[%clk 0:00:28]} 34. Rxh3 {[%clk 0:01:40]}  Rxh3+ {[%clk 0:00:29]} 35. Kxh3 {[%clk 0:01:39]}  Nf4+ {[%clk 0:00:30]} 36. Kg3 {[%clk 0:01:32]}  Nxe6 {[%clk 0:00:31]} 37. c4 {[%clk 0:01:29]}  Kg6 {[%clk 0:00:25]} 38. cxd5 {[%clk 0:01:27]}  cxd5 {[%clk 0:00:26]} 39. a4 {[%clk 0:01:23]}  d4 {[%clk 0:00:19]} 40. b4 {[%clk 0:01:19]}  d3 {[%clk 0:00:15]} 41. Kf3 {[%clk 0:01:16]}  d2 {[%clk 0:00:09]} 42. Ke2 {[%clk 0:01:16]}  Kg5 {[%clk 0:00:10]} 43. Kxd2 {[%clk 0:01:15]}  Kxg4 {[%clk 0:00:11]} 44. b5 {[%clk 0:01:14]}  axb5 {[%clk 0:00:11]} 45. a5 {[%clk 0:01:14]}  Kf5 {[%clk 0:00:01]} 46. a6 {[%clk 0:01:14]}  Nd4 {[%clk 0:00:01]} 47. a7 {[%clk 0:01:14]}  Nb3+ {[%clk 0:00:01]} 48. Kc3 {[%clk 0:01:13]}  Na5 {[%clk 0:00:02]} 49. a8=Q {[%clk 0:01:13]}  Nc4 {[%clk 0:00:03]} 50. Qc8+ {[%clk 0:01:07]} 1-0


[Site "https://www.chess.com"]

[Event "Titled Tuesday Blitz April 4 Late 2023"]
[White "Rizzo, Tobias"]
[Black "Papp, Levente"]
[WhiteFideId "30942691"]
[BlackFideId "751243"]
[WhiteElo "2459"]
[BlackElo "2380"]
[Result "0-1"]
[Round "05"]
[TimeControl "180+2"]
[Date "2023.04.04"]
[WhiteClock "0:00:02"]
[BlackClock "0:00:03"]

1. d4 {[%clk 0:03:00]}  Nf6 {[%clk 0:02:59]} 2. Bg5 {[%clk 0:02:59]}  Ne4 {[%clk 0:02:57]} 3. h4 {[%clk 0:02:59]}  c5 {[%clk 0:02:54]} 4. d5 {[%clk 0:02:57]}  Qb6 {[%clk 0:02:53]} 5. Nd2 {[%clk 0:02:56]}  Nxd2 {[%clk 0:02:43]} 6. Bxd2 {[%clk 0:02:57]}  e5 {[%clk 0:02:39]} 7. e4 {[%clk 0:02:54]}  d6 {[%clk 0:02:36]} 8. Bc3 {[%clk 0:02:48]}  f5 {[%clk 0:02:34]} 9. Bd3 {[%clk 0:02:41]}  f4 {[%clk 0:02:31]} 10. h5 {[%clk 0:02:29]}  Qd8 {[%clk 0:02:28]} 11. a4 {[%clk 0:02:27]}  Qg5 {[%clk 0:02:23]} 12. Kf1 {[%clk 0:02:16]}  Bg4 {[%clk 0:02:06]} 13. Nf3 {[%clk 0:02:14]}  Qd8 {[%clk 0:02:06]} 14. Be2 {[%clk 0:02:03]}  Nd7 {[%clk 0:02:02]} 15. Nd2 {[%clk 0:01:59]}  Bxe2+ {[%clk 0:02:00]} 16. Qxe2 {[%clk 0:02:00]}  a6 {[%clk 0:01:49]} 17. a5 {[%clk 0:01:58]}  b5 {[%clk 0:01:31]} 18. axb6 {[%clk 0:01:57]}  Qxb6 {[%clk 0:01:31]} 19. Ba5 {[%clk 0:01:57]}  Qb7 {[%clk 0:01:26]} 20. Nc4 {[%clk 0:01:56]}  Nf6 {[%clk 0:01:17]} 21. g3 {[%clk 0:01:36]}  fxg3 {[%clk 0:01:00]} 22. fxg3 {[%clk 0:01:37]}  Be7 {[%clk 0:01:00]} 23. Kg2 {[%clk 0:01:36]}  O-O {[%clk 0:01:00]} 24. Rhf1 {[%clk 0:01:29]}  Rf7 {[%clk 0:00:41]} 25. Bc3 {[%clk 0:01:15]}  Raf8 {[%clk 0:00:37]} 26. Rf2 {[%clk 0:01:05]}  Nxd5 {[%clk 0:00:14]} 27. Rxf7 {[%clk 0:01:02]}  Rxf7 {[%clk 0:00:15]} 28. exd5 {[%clk 0:01:02]}  Qxd5+ {[%clk 0:00:16]} 29. Kh2 {[%clk 0:00:58]}  e4 {[%clk 0:00:09]} 30. Ne3 {[%clk 0:00:55]}  Qg5 {[%clk 0:00:09]} 31. Rf1 {[%clk 0:00:35]}  Rxf1 {[%clk 0:00:09]} 32. Nxf1 {[%clk 0:00:36]}  d5 {[%clk 0:00:09]} 33. Bd2 {[%clk 0:00:37]}  Qf6 {[%clk 0:00:06]} 34. c3 {[%clk 0:00:21]}  Qe6 {[%clk 0:00:05]} 35. Kg2 {[%clk 0:00:19]}  d4 {[%clk 0:00:06]} 36. cxd4 {[%clk 0:00:19]}  cxd4 {[%clk 0:00:06]} 37. g4 {[%clk 0:00:17]}  e3 {[%clk 0:00:07]} 38. Be1 {[%clk 0:00:16]}  Bd6 {[%clk 0:00:07]} 39. Bg3 {[%clk 0:00:14]}  Be7 {[%clk 0:00:04]} 40. Bf4 {[%clk 0:00:12]}  h6 {[%clk 0:00:04]} 41. Nh2 {[%clk 0:00:12]}  Qd5+ {[%clk 0:00:04]} 42. Nf3 {[%clk 0:00:10]}  Bc5 {[%clk 0:00:03]} 43. Qd3 {[%clk 0:00:10]}  Qe6 {[%clk 0:00:03]} 44. Kg3 {[%clk 0:00:09]}  e2 {[%clk 0:00:03]} 45. Ne1 {[%clk 0:00:09]}  Bb4 {[%clk 0:00:03]} 46. Bd2 {[%clk 0:00:08]}  Bd6+ {[%clk 0:00:03]} 47. Kh3 {[%clk 0:00:04]}  Qe5 {[%clk 0:00:03]} 48. Nf3 {[%clk 0:00:02]}  Qg3# {[%clk 0:00:03]} 0-1


[Site "https://www.chess.com"]

[Event "Titled Tuesday Blitz April 4 Late 2023"]
[White "Ehlvest, Jaan"]
[Black "Dzida, Kamil"]
[WhiteFideId "4500016"]
[BlackFideId "21828652"]
[WhiteElo "2442"]
[BlackElo "2139"]
[Result "1-0"]
[Round "05"]
[TimeControl "180+2"]
[Date "2023.04.04"]
[WhiteClock "0:00:30"]
[BlackClock "0:00:09"]

1. f4 {[%clk 0:01:29]}  Nf6 {[%clk 0:02:57]} 2. Nf3 {[%clk 0:01:24]}  d5 {[%clk 0:02:56]} 3. g3 {[%clk 0:01:24]}  g6 {[%clk 0:02:56]} 4. Bg2 {[%clk 0:01:24]}  Bg7 {[%clk 0:02:56]} 5. O-O {[%clk 0:01:24]}  O-O {[%clk 0:02:57]} 6. d3 {[%clk 0:01:24]}  Nc6 {[%clk 0:02:55]} 7. Qe1 {[%clk 0:01:24]}  Qd6 {[%clk 0:02:54]} 8. Nc3 {[%clk 0:01:21]}  a6 {[%clk 0:02:53]} 9. e4 {[%clk 0:01:19]}  e5 {[%clk 0:02:46]} 10. fxe5 {[%clk 0:01:16]}  Nxe5 {[%clk 0:02:46]} 11. Nxe5 {[%clk 0:01:16]}  Qxe5 {[%clk 0:02:45]} 12. Bf4 {[%clk 0:01:16]}  Qd4+ {[%clk 0:02:42]} 13. Be3 {[%clk 0:01:16]}  Qb4 {[%clk 0:02:40]} 14. Nxd5 {[%clk 0:01:14]}  Nxd5 {[%clk 0:02:37]} 15. exd5 {[%clk 0:01:14]}  Qxb2 {[%clk 0:02:33]} 16. Qf2 {[%clk 0:01:07]}  Bd7 {[%clk 0:02:13]} 17. Rab1 {[%clk 0:01:05]}  Qxa2 {[%clk 0:02:04]} 18. Rxb7 {[%clk 0:01:04]}  Rac8 {[%clk 0:01:47]} 19. d6 {[%clk 0:00:59]}  Ba4 {[%clk 0:01:35]} 20. c4 {[%clk 0:00:51]}  Qxf2+ {[%clk 0:01:31]} 21. Rxf2 {[%clk 0:00:51]}  cxd6 {[%clk 0:01:31]} 22. Bd5 {[%clk 0:00:49]}  Bc6 {[%clk 0:01:22]} 23. Rfxf7 {[%clk 0:00:49]}  Rxf7 {[%clk 0:01:05]} 24. Bxf7+ {[%clk 0:00:45]}  Kf8 {[%clk 0:00:44]} 25. Ra7 {[%clk 0:00:46]}  Ra8 {[%clk 0:00:44]} 26. Rc7 {[%clk 0:00:44]}  a5 {[%clk 0:00:40]} 27. c5 {[%clk 0:00:38]}  d5 {[%clk 0:00:32]} 28. Be6 {[%clk 0:00:33]}  Be8 {[%clk 0:00:21]} 29. Bf4 {[%clk 0:00:32]}  Bd4+ {[%clk 0:00:14]} 30. Kg2 {[%clk 0:00:31]}  Ra6 {[%clk 0:00:09]} 31. Bh6+ {[%clk 0:00:30]} 1-0


[Site "https://www.chess.com"]

[Event "Titled Tuesday Blitz April 4 Late 2023"]
[White "Munoz, Francisco Javier"]
[Black "Moral Garcia, Serafin"]
[WhiteFideId "128368"]
[BlackFideId "2201925"]
[WhiteElo "2383"]
[BlackElo "2274"]
[Result "0-1"]
[Round "05"]
[TimeControl "180+2"]
[Date "2023.04.04"]
[WhiteClock "0:00:01"]
[BlackClock "0:00:55"]

1. e4 {[%clk 0:02:56]}  c5 {[%clk 0:02:57]} 2. Nc3 {[%clk 0:02:56]}  e6 {[%clk 0:02:57]} 3. b3 {[%clk 0:02:55]}  Nc6 {[%clk 0:02:56]} 4. Bb2 {[%clk 0:02:55]}  d5 {[%clk 0:02:56]} 5. Bb5 {[%clk 0:02:55]}  Nf6 {[%clk 0:02:51]} 6. Bxc6+ {[%clk 0:02:54]}  bxc6 {[%clk 0:02:51]} 7. d3 {[%clk 0:02:51]}  Rb8 {[%clk 0:02:43]} 8. Nge2 {[%clk 0:02:49]}  c4 {[%clk 0:02:43]} 9. dxc4 {[%clk 0:02:49]}  dxe4 {[%clk 0:02:38]} 10. Qxd8+ {[%clk 0:02:48]}  Kxd8 {[%clk 0:02:39]} 11. Ng3 {[%clk 0:02:47]}  Bb4 {[%clk 0:02:38]} 12. O-O-O+ {[%clk 0:02:47]}  Ke7 {[%clk 0:02:37]} 13. Ncxe4 {[%clk 0:02:48]}  Nxe4 {[%clk 0:02:37]} 14. Nxe4 {[%clk 0:02:47]}  Rg8 {[%clk 0:02:36]} 15. c5 {[%clk 0:02:34]}  f5 {[%clk 0:02:33]} 16. Be5 {[%clk 0:02:26]}  Rb5 {[%clk 0:02:33]} 17. Bd6+ {[%clk 0:02:24]}  Kf7 {[%clk 0:02:33]} 18. Ng5+ {[%clk 0:02:05]}  Kg6 {[%clk 0:02:31]} 19. Nf3 {[%clk 0:02:05]}  Bxc5 {[%clk 0:02:26]} 20. a4 {[%clk 0:01:20]}  Ra5 {[%clk 0:02:26]} 21. Ne5+ {[%clk 0:01:20]}  Kf6 {[%clk 0:02:25]} 22. Nc4 {[%clk 0:01:20]}  Bxd6 {[%clk 0:02:24]} 23. Nxa5 {[%clk 0:01:19]}  Bf4+ {[%clk 0:02:24]} 24. Kb1 {[%clk 0:01:18]}  c5 {[%clk 0:02:24]} 25. g3 {[%clk 0:01:15]}  Be5 {[%clk 0:02:23]} 26. f4 {[%clk 0:01:13]}  Bd4 {[%clk 0:02:17]} 27. Rhe1 {[%clk 0:01:13]}  Bc3 {[%clk 0:02:15]} 28. Nc4 {[%clk 0:01:11]}  Bxe1 {[%clk 0:02:15]} 29. Rxe1 {[%clk 0:01:11]}  Rd8 {[%clk 0:02:11]} 30. Kb2 {[%clk 0:01:07]}  h6 {[%clk 0:02:09]} 31. Kc3 {[%clk 0:01:07]}  g5 {[%clk 0:02:07]} 32. Re5 {[%clk 0:01:01]}  Rd5 {[%clk 0:01:59]} 33. Rxd5 {[%clk 0:00:49]}  exd5 {[%clk 0:01:58]} 34. Ne5 {[%clk 0:00:50]}  Be6 {[%clk 0:01:41]} 35. b4 {[%clk 0:00:49]}  d4+ {[%clk 0:01:40]} 36. Kd2 {[%clk 0:00:49]}  cxb4 {[%clk 0:01:39]} 37. Kd3 {[%clk 0:00:49]}  a5 {[%clk 0:01:33]} 38. Kxd4 {[%clk 0:00:49]}  b3 {[%clk 0:01:32]} 39. Kc3 {[%clk 0:00:39]}  bxc2 {[%clk 0:01:29]} 40. Kxc2 {[%clk 0:00:39]}  Bd5 {[%clk 0:01:22]} 41. Kc3 {[%clk 0:00:22]}  gxf4 {[%clk 0:01:20]} 42. gxf4 {[%clk 0:00:22]}  Ke6 {[%clk 0:01:20]} 43. Nc4 {[%clk 0:00:16]}  Bc6 {[%clk 0:01:20]} 44. Kb3 {[%clk 0:00:15]}  Bd5 {[%clk 0:01:20]} 45. Kc3 {[%clk 0:00:15]}  Bc6 {[%clk 0:01:20]} 46. Nxa5 {[%clk 0:00:15]}  Bxa4 {[%clk 0:01:20]} 47. Kd4 {[%clk 0:00:16]}  Bb5 {[%clk 0:01:15]} 48. Nb3 {[%clk 0:00:16]}  Kd6 {[%clk 0:01:14]} 49. Nc5 {[%clk 0:00:15]}  Bc6 {[%clk 0:01:12]} 50. Nd3 {[%clk 0:00:14]}  Be4 {[%clk 0:01:12]} 51. Ne5 {[%clk 0:00:15]}  Ke6 {[%clk 0:01:12]} 52. Kc5 {[%clk 0:00:15]}  Bg2 {[%clk 0:01:11]} 53. Kd4 {[%clk 0:00:14]}  Bh1 {[%clk 0:01:09]} 54. Nd3 {[%clk 0:00:15]}  Kd6 {[%clk 0:01:07]} 55. Nb2 {[%clk 0:00:14]}  Bd5 {[%clk 0:01:05]} 56. Nd1 {[%clk 0:00:14]}  Be4 {[%clk 0:01:04]} 57. Ne3 {[%clk 0:00:14]}  Ke6 {[%clk 0:01:04]} 58. Kc5 {[%clk 0:00:14]}  Bd3 {[%clk 0:01:01]} 59. Kc6 {[%clk 0:00:14]}  Be4+ {[%clk 0:00:58]} 60. Kc7 {[%clk 0:00:14]}  Bd3 {[%clk 0:00:59]} 61. Kd8 {[%clk 0:00:14]}  Kd6 {[%clk 0:00:59]} 62. Ke8 {[%clk 0:00:14]}  Kc5 {[%clk 0:00:59]} 63. Kf7 {[%clk 0:00:14]}  Kd4 {[%clk 0:00:59]} 64. Nd1 {[%clk 0:00:09]}  Be2 {[%clk 0:00:58]} 65. Nb2 {[%clk 0:00:02]}  Ke3 {[%clk 0:00:58]} 66. Kg6 {[%clk 0:00:03]}  Kxf4 {[%clk 0:00:55]} 67. Kxh6 {[%clk 0:00:03]}  Ke3 {[%clk 0:00:56]} 68. Kg5 {[%clk 0:00:01]}  f4 {[%clk 0:00:56]} 69. h4 {[%clk 0:00:01]}  f3 {[%clk 0:00:56]} 70. h5 {[%clk 0:00:02]}  f2 {[%clk 0:00:56]} 71. h6 {[%clk 0:00:03]}  f1=Q {[%clk 0:00:56]} 72. h7 {[%clk 0:00:04]}  Qf8 {[%clk 0:00:56]} 73. Kg6 {[%clk 0:00:02]}  Bd3+ {[%clk 0:00:54]} 74. Nxd3 {[%clk 0:00:01]}  Kxd3 {[%clk 0:00:55]} 0-1


[Site "https://www.chess.com"]